fUST/lending_fUST_20250104
["ID","MTS","AMOUNT","RATE_DAILY","PERIOD"]
[347586916,1735930242814,-500.0,0.00019178,2]
[347586918,1735930242823,-509.64465727,0.00019178,2]
[347586920,1735930242832,-500.0,0.00019178,2]
[347586922,1735930242842,-500.0,0.00019178,2]
[347586923,1735930242851,-279.22681415,0.00019178,2]
[347586924,1735930242860,-1586.28,0.00019178,2]
[347586926,1735930242870,-500.0,0.00019178,2]
[347586928,1735930242881,-500.0,0.00019178,2]
[347586930,1735930242890,-500.0,0.00019178,2]
[347586932,1735930242899,-500.0,0.00019178,2]
[347586934,1735930242909,-500.0,0.00019178,2]
[347586935,1735930242918,-500.0,0.00019178,2]
[347586936,1735930242927,-500.0,0.00019178,2]
[347586938,1735930242937,-500.0,0.00019178,2]
[347586940,1735930242946,-500.0,0.00019178,2]
[347586941,1735930242955,-500.0,0.00019178,2]
[347586943,1735930242964,-500.0,0.00019178,2]
[347586945,1735930242973,-500.0,0.00019178,2]
[347586947,1735930242982,-511.13086422,0.00019178,2]
[347586949,1735930242992,-500.0,0.00019178,2]
[347586950,1735930243001,-500.0,0.00019178,2]
[347586951,1735930243010,-500.0,0.00019178,2]
[347586952,1735930243019,-500.0,0.00019178,2]
[347586953,1735930243029,-500.0,0.00019178,2]
[347586954,1735930243039,-500.0,0.00019178,2]
[347586955,1735930243048,-500.0,0.00019178,2]
[347586956,1735930243057,-500.0,0.00019178,2]
[347586957,1735930243068,-500.0,0.00019178,2]
[347586958,1735930243079,-501.42068149,0.00019178,2]
[347586959,1735930243089,-500.0,0.00019178,2]
[347586960,1735930243099,-500.0,0.00019178,2]
[347586961,1735930243108,-500.0,0.00019178,2]
[347586962,1735930243117,-500.0,0.00019178,2]
[347586963,1735930243130,-502.15222398,0.00019178,2]
[347586964,1735930243139,-848.62,0.00019178,2]
[347586965,1735930243148,-500.0,0.00019178,2]
[347586966,1735930243157,-500.0,0.00019178,2]
[347586967,1735930243166,-500.0,0.00019178,2]
[347586968,1735930243175,-500.0,0.00019178,2]
[347586969,1735930243184,-500.0,0.00019178,2]
[347586970,1735930243194,-152.331409,0.00019178,2]
[347586971,1735930243203,-500.0,0.00019178,2]
[347586972,1735930243212,-500.0,0.00019178,2]
[347586973,1735930243222,-500.0,0.00019178,2]
[347586974,1735930243232,-2744.32,0.00019178,2]
[347586975,1735930243241,-150.43271396,0.00019178,2]
[347586976,1735930243250,-500.0,0.00019178,2]
[347586977,1735930243260,-500.0,0.00019178,2]
[347586978,1735930243272,-500.0,0.00019178,2]
[347586979,1735930243282,-500.0,0.00019178,2]
[347586980,1735930243291,-500.0,0.00019178,2]
[347586981,1735930243300,-500.0,0.00019178,2]
[347586982,1735930243310,-518.7850603,0.00019178,2]
[347586983,1735930243319,-1057.61,0.00019178,2]
[347586985,1735930243329,-500.0,0.00019178,2]
[347586986,1735930243338,-151.0,0.00019178,2]
[347586987,1735930243348,-500.0,0.00019178,2]
[347586988,1735930243358,-151.0,0.00019178,2]
[347586989,1735930243367,-151.0,0.00019178,2]
[347586990,1735930243379,-2316.03,0.00019178,2]
[347586991,1735930243388,-151.0,0.00019178,2]
[347586992,1735930243398,-151.0,0.00019178,2]
[347586993,1735930243407,-500.0,0.00019178,2]
[347586994,1735930243416,-503.77909595,0.00019178,2]
[347586995,1735930243426,-151.0,0.00019178,2]
[347586996,1735930243436,-162.765594,0.00019178,2]
[347586997,1735930243446,-500.0,0.00019178,2]
[347586998,1735930243455,-500.0,0.00019178,2]
[347586999,1735930243464,-1370.54,0.00019178,2]
[347587000,1735930243504,-1034.86,0.00019178,2]
[347587001,1735930243513,-500.0,0.00019178,2]
[347587002,1735930243522,-500.0,0.00019178,2]
[347587003,1735930243531,-500.0,0.00019178,2]
[347587004,1735930243541,-500.0,0.00019178,2]
[347587005,1735930243550,-500.0,0.00019178,2]
[347587006,1735930243559,-609.28050601,0.00019178,2]
[347587007,1735930243580,-500.0,0.00019178,2]
[347587008,1735930243591,-500.0,0.00019178,2]
[347587009,1735930243600,-627.85739977,0.00019178,2]
[347587010,1735930243610,-500.0,0.00019178,2]
[347587011,1735930243620,-557.42,0.00019178,2]
[347587012,1735930243631,-500.0,0.00019178,2]
[347587013,1735930243641,-501.03752456,0.00019178,2]
[347587014,1735930243651,-500.0,0.00019178,2]
[347587015,1735930243660,-1184.76,0.00019178,2]
[347587016,1735930243670,-500.0,0.00019178,2]
[347587017,1735930243680,-500.0,0.00019178,2]
[347587018,1735930243690,-500.0,0.00019178,2]
[347587019,1735930243700,-500.0,0.00019178,2]
[347587020,1735930243710,-500.0,0.00019178,2]
[347587021,1735930243719,-500.0,0.00019178,2]
[347587022,1735930243729,-500.0,0.00019178,2]
[347587023,1735930243739,-500.0,0.00019178,2]
[347587024,1735930243749,-500.0,0.00019178,2]
[347587025,1735930243759,-500.0,0.00019178,2]
[347587026,1735930243769,-500.0,0.00019178,2]
[347587027,1735930243779,-500.0,0.00019178,2]
[347587028,1735930243788,-500.0,0.00019178,2]
[347587029,1735930243798,-500.0,0.00019178,2]
[347587030,1735930243808,-500.0,0.00019178,2]
[347587031,1735930243817,-500.0,0.00019178,2]
[347587032,1735930243827,-500.0,0.00019178,2]
[347587033,1735930243837,-151.0,0.00019178,2]
[347587034,1735930243847,-843.38,0.00019178,2]
[347587035,1735930243856,-151.0,0.00019178,2]
[347587036,1735930243866,-151.0,0.00019178,2]
[347587037,1735930243875,-282.00278,0.00019178,2]
[347587038,1735930243885,-500.0,0.00019178,2]
[347587039,1735930243895,-151.0,0.00019178,2]
[347587040,1735930243904,-151.0,0.00019178,2]
[347587041,1735930243914,-500.0,0.00019178,2]
[347587042,1735930243925,-151.0,0.00019178,2]
[347587043,1735930243935,-151.0,0.00019178,2]
[347587044,1735930243944,-151.0,0.00019178,2]
[347587045,1735930243954,-500.0,0.00019178,2]
[347587046,1735930243963,-507.10009665,0.00019178,2]
[347587047,1735930243974,-500.0,0.00019178,2]
[347587048,1735930243984,-500.0,0.00019178,2]
[347587049,1735930243994,-500.0,0.00019178,2]
[347587050,1735930244003,-500.0,0.00019178,2]
[347587051,1735930244013,-664.23,0.00019178,2]
[347587052,1735930244023,-858.5,0.00019178,2]
[347587053,1735930244033,-500.0,0.00019178,2]
[347587054,1735930244043,-463.49033799,0.00019178,2]
[347587055,1735930244052,-1788.96,0.00019178,2]
[347587056,1735930244062,-500.0,0.00019178,2]
[347587057,1735930244071,-500.0,0.00019178,2]
[347587058,1735930244082,-237.9477663,0.00019178,2]
[347587059,1735930244092,-500.0,0.00019178,2]
[347587060,1735930244101,-500.0,0.00019178,2]
[347587061,1735930244111,-500.0,0.00019178,2]
[347587062,1735930244121,-542.96,0.00019178,2]
[347587063,1735930244131,-151.0,0.00019178,2]
[347587064,1735930244141,-151.0,0.00019178,2]
[347587065,1735930244151,-182.545176,0.00019178,2]
[347587066,1735930244161,-500.0,0.00019178,2]
[347587067,1735930244170,-506.64114542,0.00019178,2]
[347587068,1735930244179,-405.0316675,0.00019178,2]
[347587069,1735930244190,-500.0,0.00019178,2]
[347587070,1735930244200,-500.0,0.00019178,2]
[347587071,1735930244209,-4830.3,0.00019178,2]
[347587072,1735930244218,-3817.36,0.00019178,2]
[347587073,1735930244228,-500.0,0.00019178,2]
[347587074,1735930244238,-500.0,0.00019178,2]
[347587075,1735930244247,-500.0,0.00019178,2]
[347587076,1735930244257,-2545.21,0.00019178,2]
[347587077,1735930244269,-500.0,0.00019178,2]
[347587078,1735930244280,-500.0,0.00019178,2]
[347587079,1735930244289,-500.0,0.00019178,2]
[347587080,1735930244299,-2911.54,0.00019178,2]
[347587081,1735930244310,-501.27810785,0.00019178,2]
[347587082,1735930244320,-500.0,0.00019178,2]
[347587083,1735930244330,-502.63554415,0.00019178,2]
[347587084,1735930244339,-500.0,0.00019178,2]
[347587085,1735930244350,-500.0,0.00019178,2]
[347587086,1735930244360,-500.0,0.00019178,2]
[347587087,1735930244370,-500.0,0.00019178,2]
[347587088,1735930244381,-500.0,0.00019178,2]
[347587089,1735930244390,-500.0,0.00019178,2]
[347587090,1735930244400,-500.0,0.00019178,2]
[347587091,1735930244409,-500.0,0.00019178,2]
[347587092,1735930244419,-500.0,0.00019178,2]
[347587093,1735930244428,-527.47,0.00019178,2]
[347587094,1735930244438,-500.0,0.00019178,2]
[347587095,1735930244448,-500.0,0.00019178,2]
[347587096,1735930244458,-500.0,0.00019178,2]
[347587097,1735930244468,-500.0,0.00019178,2]
[347587098,1735930244478,-500.0,0.00019178,2]
[347587099,1735930244488,-500.0,0.00019178,2]
[347587100,1735930244498,-500.0,0.00019178,2]
[347587101,1735930244508,-500.0,0.00019178,2]
[347587102,1735930244518,-151.0,0.00019178,2]
[347587103,1735930244528,-221.289391,0.00019178,2]
[347587104,1735930244538,-500.0,0.00019178,2]
[347587105,1735930244549,-500.0,0.00019178,2]
[347587106,1735930244559,-1320.53,0.00019178,2]
[347587107,1735930244569,-500.0,0.00019178,2]
[347587108,1735930244579,-500.0,0.00019178,2]
[347587109,1735930244589,-500.0,0.00019178,2]
[347587110,1735930244599,-500.0,0.00019178,2]
[347587111,1735930244609,-500.0,0.00019178,2]
[347587112,1735930244619,-500.0,0.00019178,2]
[347587113,1735930244631,-151.0,0.00019178,2]
[347587114,1735930244641,-151.0,0.00019178,2]
[347587115,1735930244651,-500.0,0.00019178,2]
[347587116,1735930244661,-151.0,0.00019178,2]
[347587117,1735930244671,-151.0,0.00019178,2]
[347587118,1735930244681,-500.0,0.00019178,2]
[347587119,1735930244691,-151.0,0.00019178,2]
[347587120,1735930244701,-500.0,0.00019178,2]
[347587121,1735930244710,-500.0,0.00019178,2]
[347587122,1735930244720,-1177.83,0.00019178,2]
[347587123,1735930244730,-500.0,0.00019178,2]
[347587124,1735930244740,-500.0,0.00019178,2]
[347587125,1735930244750,-500.0,0.00019178,2]
[347587126,1735930244759,-500.41877827,0.00019178,2]
[347587127,1735930244769,-518.42418104,0.00019178,2]
[347587128,1735930244778,-500.0,0.00019178,2]
[347587129,1735930244788,-500.0,0.00019178,2]
[347587130,1735930244798,-700.19,0.00019178,2]
[347587131,1735930244808,-500.0,0.00019178,2]
[347587132,1735930244818,-500.0,0.00019178,2]
[347587133,1735930244828,-503.18877693,0.00019178,2]
[347587134,1735930244838,-500.0,0.00019178,2]
[347587135,1735930244848,-505.57892759,0.00019178,2]
[347587136,1735930244858,-500.0,0.00019178,2]
[347587137,1735930244867,-1554.88,0.00019178,2]
[347587138,1735930244879,-514.470724,0.00019178,2]
[347587139,1735930244888,-500.0,0.00019178,2]
[347587140,1735930244898,-514.470724,0.00019178,2]
[347587141,1735930244907,-514.470724,0.00019178,2]
[347587142,1735930244916,-500.0,0.00019178,2]
[347587143,1735930244926,-514.470724,0.00019178,2]
[347587144,1735930244936,-514.470724,0.00019178,2]
[347587145,1735930244945,-500.0,0.00019178,2]
[347587146,1735930244954,-500.0,0.00019178,2]
[347587147,1735930244964,-514.470724,0.00019178,2]
[347587148,1735930244973,-514.470724,0.00019178,2]
[347587149,1735930244982,-968.23,0.00019178,2]
[347587150,1735930244992,-514.470724,0.00019178,2]
[347587151,1735930245002,-514.470724,0.00019178,2]
[347587152,1735930245011,-500.0,0.00019178,2]
[347587153,1735930245021,-500.0,0.00019178,2]
[347587154,1735930245030,-514.470724,0.00019178,2]
[347587155,1735930245040,-37255.48,0.00019178,2]
[347587156,1735930245050,-500.0,0.00019178,2]
[347587157,1735930245060,-500.0,0.00019178,2]
[347587158,1735930245069,-500.0,0.00019178,2]
[347587159,1735930245078,-500.0,0.00019178,2]
[347587160,1735930245087,-500.0,0.00019178,2]
[347587161,1735930245097,-151.0,0.00019178,2]
[347587162,1735930245106,-151.0,0.00019178,2]
[347587163,1735930245115,-151.0,0.00019178,2]
[347587164,1735930245126,-1600.67,0.00019178,2]
[347587165,1735930245135,-151.0,0.00019178,2]
[347587166,1735930245145,-151.0,0.00019178,2]
[347587167,1735930245156,-500.0,0.00019178,2]
[347587168,1735930245165,-500.0,0.00019178,2]
[347587169,1735930245175,-500.0,0.00019178,2]
[347587170,1735930245185,-1072.66,0.00019178,2]
[347587171,1735930245196,-500.0,0.00019178,2]
[347587172,1735930245205,-500.0,0.00019178,2]
[347587173,1735930245215,-748.49,0.00019178,2]
[347587174,1735930245224,-549.53786273,0.00019178,2]
[347587175,1735930245234,-500.0,0.00019178,2]
[347587176,1735930245244,-500.0,0.00019178,2]
[347587177,1735930245254,-500.0,0.00019178,2]
[347587178,1735930245265,-500.0,0.00019178,2]
[347587179,1735930245277,-500.0,0.00019178,2]
[347587180,1735930245287,-157.2,0.00019178,2]
[347587182,1735930245297,-158.797415,0.00019178,2]
[347587184,1735930245307,-1031.52,0.000192,2]
[347587186,1735930245317,-151.0,0.000192,2]
[347587187,1735930245327,-151.0,0.000192,2]
[347587189,1735930245337,-151.0,0.000192,2]
[347587191,1735930245347,-151.0,0.000192,2]
[347587192,1735930245357,-151.0,0.00019281,2]
[347587193,1735930245368,-151.0,0.000193,2]
[347587194,1735930245379,-151.0,0.000193,2]
[347587195,1735930245389,-151.0,0.000193,2]
[347587196,1735930245399,-151.0,0.000193,2]
[347587197,1735930245409,-151.0,0.000193,2]
[347587198,1735930245419,-6676.61,0.00019312,3]
[347587199,1735930245429,-2057.64238272,0.00019314,2]
[347587200,1735930245439,-1419.08951334,0.00019352,2]
[347587201,1735930245449,-151.0,0.00019383,2]
[347587202,1735930245459,-151.0,0.00019383,2]
[347587203,1735930245469,-500.0,0.00019383,3]
[347587204,1735930245479,-500.0,0.00019383,3]
[347587205,1735930245489,-151.0,0.00019383,2]
[347587206,1735930245498,-151.0,0.00019383,2]
[347587207,1735930245508,-514.470724,0.00019383,2]
[347587208,1735930245518,-514.470724,0.00019383,2]
[347587209,1735930245528,-156.2590886,0.00019397,2]
[347587210,1735930245538,-151.0,0.000194,2]
[347587211,1735930245548,-151.0,0.000194,2]
[347587212,1735930245559,-151.0,0.000194,2]
[347587213,1735930245569,-151.0,0.000194,2]
[347587215,1735930245579,-151.0,0.000194,2]
[347587217,1735930245589,-151.0,0.000194,2]
[347587219,1735930245599,-500.0,0.00019451,3]
[347587221,1735930245609,-487.31738913,0.00019451,3]
[347587223,1735930245619,-151.0,0.00019451,2]
[347587224,1735930245631,-500.0,0.00019451,3]
[347587226,1735930245640,-500.0,0.00019451,3]
[347587228,1735930245651,-500.0,0.00019451,3]
[347587230,1735930245661,-337.76,0.00019451,3]
[347587232,1735930245671,-203.227523,0.00019451,2]
[347587234,1735930245681,-203.227523,0.00019451,2]
[347587236,1735930245692,-6676.61,0.00019451,3]
[347587237,1735930245701,-6676.61,0.00019451,3]
[347587239,1735930245711,-6676.61,0.00019451,3]
[347587241,1735930245721,-6676.61,0.00019451,3]
[347587242,1735930245731,-6676.61,0.00019451,3]
[347587244,1735930245741,-6676.61,0.00019451,3]
[347587246,1735930245751,-6676.61,0.00019451,3]
[347587248,1735930245761,-6676.61,0.00019451,3]
[347587250,1735930245770,-6676.61,0.00019451,3]
[347587251,1735930245780,-151.0,0.00019451,2]
[347587253,1735930245790,-228.036722,0.00019451,2]
[347587254,1735930245800,-228.036722,0.00019451,2]
[347587255,1735930245810,-151.0,0.00019451,2]
[347587256,1735930245820,-151.0,0.00019451,2]
[347587257,1735930245830,-151.0,0.00019451,2]
[347587258,1735930245840,-514.470724,0.00019451,2]
[347587259,1735930245850,-514.470724,0.00019451,2]
[347587260,1735930245860,-151.0,0.00019451,2]
[347587261,1735930245870,-2057.64238272,0.00019452,2]
[347587262,1735930245880,-151.0,0.00019452,2]
[347587263,1735930245890,-151.0,0.00019452,2]
[347587264,1735930245900,-188.823429,0.00019452,2]
[347587265,1735930245910,-210.369284,0.00019452,2]
[347587266,1735930245920,-210.369284,0.00019452,2]
[347587267,1735930245930,-210.369284,0.00019452,2]
[347587268,1735930245940,-210.369284,0.00019452,2]
[347587269,1735930245950,-210.369284,0.00019452,2]
[347587270,1735930245960,-210.369284,0.00019452,2]
[347587271,1735930245969,-210.369284,0.00019452,2]
[347587272,1735930245979,-210.369284,0.00019452,2]
[347587273,1735930245989,-151.0,0.00019452,2]
[347587274,1735930245999,-151.0,0.00019452,2]
[347587275,1735930246009,-217.973188,0.00019452,2]
[347587276,1735930246019,-151.0,0.00019452,2]
[347587277,1735930246029,-151.0,0.00019452,2]
[347587278,1735930246040,-9.14866994,0.00019452,2]
[347587283,1735930246371,-141.85133006,0.00019452,2]
[347587284,1735930246383,-151.0,0.00019452,2]
[347587285,1735930246392,-151.0,0.00019452,2]
[347587286,1735930246402,-93.19338412,0.00019452,2]
[347587287,1735930246779,-1083.62,0.00019178,2]
[347587288,1735930246788,-500.0,0.00019178,2]
[347587289,1735930246798,-57.80661588,0.00019452,2]
[347587290,1735930246807,-151.0,0.00019452,2]
[347587291,1735930246817,-151.0,0.00019452,2]
[347587292,1735930246827,-151.0,0.00019452,2]
[347587293,1735930246836,-166.445477,0.00019452,2]
[347587294,1735930246846,-166.445477,0.00019452,2]
[347587295,1735930246856,-507.88808391,0.00019452,3]
[347587296,1735930246866,-500.0,0.00019452,3]
[347587297,1735930246876,-500.0,0.00019452,3]
[347587298,1735930246886,-151.0,0.00019452,2]
[347587299,1735930246896,-151.0,0.00019452,2]
[347587300,1735930246905,-151.0,0.00019452,2]
[347587301,1735930246915,-151.0,0.00019452,2]
[347587302,1735930246925,-500.0,0.00019452,3]
[347587303,1735930246934,-500.0,0.00019452,3]
[347587304,1735930246944,-242.715543,0.00019452,2]
[347587305,1735930246953,-500.0,0.00019452,3]
[347587306,1735930246962,-513.68988886,0.00019452,3]
[347587307,1735930246971,-193.220991,0.00019452,2]
[347587308,1735930246981,-193.220991,0.00019452,2]
[347587309,1735930246990,-193.220991,0.00019452,2]
[347587310,1735930247000,-193.220991,0.00019452,2]
[347587311,1735930247009,-500.0,0.00019452,3]
[347587312,1735930247019,-193.220991,0.00019452,2]
[347587313,1735930247028,-193.220991,0.00019452,2]
[347587314,1735930247037,-193.220991,0.00019452,2]
[347587315,1735930247047,-193.220991,0.00019452,2]
[347587316,1735930247057,-500.0,0.00019452,3]
[347587317,1735930247066,-342.16437428,0.00019452,3]
[347587318,1735930247076,-223.55078161,0.00019452,3]
[347587319,1735930247085,-500.0,0.00019452,3]
[347587320,1735930247094,-500.0,0.00019452,3]
[347587321,1735930247104,-503.2585921,0.00019452,3]
[347587322,1735930247113,-500.0,0.00019452,3]
[347587323,1735930247123,-500.0,0.00019452,3]
[347587324,1735930247133,-500.0,0.00019452,3]
[347587325,1735930247142,-151.0,0.00019452,2]
[347587326,1735930247152,-151.0,0.00019452,2]
[347587327,1735930247162,-151.0,0.00019452,2]
[347587328,1735930247171,-159.953857,0.00019452,2]
[347587329,1735930247181,-227.964044,0.00019452,2]
[347587330,1735930247191,-500.0,0.00019452,3]
[347587331,1735930247200,-634.65024189,0.00019452,3]
[347587332,1735930247210,-151.0,0.00019452,2]
[347587333,1735930247220,-151.0,0.00019452,2]
[347587334,1735930247229,-500.0,0.00019452,3]
[347587335,1735930247238,-151.0,0.00019452,2]
[347587336,1735930247247,-549.8528627,0.00019452,3]
[347587337,1735930247257,-498.60529947,0.00019452,3]
[347587338,1735930247268,-500.0,0.00019452,3]
[347587339,1735930247279,-500.0,0.00019452,3]
[347587340,1735930247288,-500.0,0.00019452,3]
[347587341,1735930247297,-500.0,0.00019452,3]
[347587342,1735930247307,-500.0,0.00019452,3]
[347587343,1735930247316,-500.0,0.00019452,3]
[347587344,1735930247325,-500.0,0.00019452,3]
[347587345,1735930247334,-500.0,0.00019452,3]
[347587346,1735930247344,-151.0,0.00019452,2]
[347587347,1735930247353,-151.0,0.00019452,2]
[347587348,1735930247363,-151.0,0.00019452,2]
[347587349,1735930247373,-500.0,0.00019452,3]
[347587350,1735930247383,-500.0,0.00019452,3]
[347587351,1735930247392,-505.74710316,0.00019452,3]
[347587352,1735930247402,-500.0,0.00019452,3]
[347587353,1735930247411,-500.0,0.00019452,3]
[347587354,1735930247421,-501.66950445,0.00019452,3]
[347587355,1735930247431,-500.0,0.00019452,3]
[347587356,1735930247440,-500.0,0.00019452,3]
[347587357,1735930247449,-519.78,0.00019452,3]
[347587358,1735930247459,-500.0,0.00019452,3]
[347587359,1735930247468,-500.0,0.00019452,3]
[347587360,1735930247477,-500.0,0.00019452,3]
[347587361,1735930247486,-300.770672,0.00019452,2]
[347587362,1735930247496,-300.770672,0.00019452,2]
[347587363,1735930247505,-300.770672,0.00019452,2]
[347587364,1735930247515,-634.68,0.00019452,3]
[347587365,1735930247527,-300.770672,0.00019452,2]
[347587366,1735930247537,-500.0,0.00019452,3]
[347587367,1735930247546,-500.0,0.00019452,3]
[347587368,1735930247556,-300.770672,0.00019452,2]
[347587369,1735930247565,-300.770672,0.00019452,2]
[347587370,1735930247575,-294.35409327,0.00019452,2]
[347587371,1735930247590,-6.41657873,0.00019452,2]
[347587372,1735930247599,-300.770672,0.00019452,2]
[347587373,1735930247609,-500.0,0.00019452,3]
[347587374,1735930247619,-655.32,0.00019452,3]
[347587375,1735930247630,-502.28494733,0.00019452,3]
[347587376,1735930247639,-500.0,0.00019452,3]
[347587377,1735930247649,-500.0,0.00019452,3]
[347587378,1735930247659,-500.0,0.00019452,3]
[347587379,1735930247668,-500.0,0.00019452,3]
[347587380,1735930247677,-500.87013837,0.00019452,3]
[347587381,1735930247687,-312.52324873,0.00019452,3]
[347587382,1735930247704,-187.47675127,0.00019452,3]
[347587383,1735930247714,-502.78208747,0.00019452,3]
[347587384,1735930247723,-190.79116126,0.00019452,3]
[347587385,1735930247734,-309.20883874,0.00019452,3]
[347587386,1735930247744,-469.87575154,0.00019452,3]
[347587387,1735930247753,-500.0,0.00019452,3]
[347587388,1735930247763,-121.92288289,0.00019452,3]
[347587389,1735930247774,-378.07711711,0.00019452,3]
[347587390,1735930247783,-500.0,0.00019452,3]
[347587391,1735930247792,-500.0,0.00019452,3]
[347587392,1735930247802,-500.0,0.00019452,3]
[347587393,1735930247811,-590.82,0.00019452,3]
[347587394,1735930247820,-500.0,0.00019452,3]
[347587395,1735930247830,-500.0,0.00019452,3]
[347587396,1735930247839,-500.0,0.00019452,3]
[347587397,1735930247849,-500.0,0.00019452,3]
[347587398,1735930247859,-500.0,0.00019452,3]
[347587399,1735930247868,-500.0,0.00019452,3]
[347587400,1735930247879,-500.0,0.00019452,3]
[347587401,1735930247888,-500.0,0.00019452,3]
[347587402,1735930247897,-500.0,0.00019452,3]
[347587403,1735930247907,-500.0,0.00019452,3]
[347587404,1735930247917,-501.46937819,0.00019452,3]
[347587405,1735930247926,-500.0,0.00019452,3]
[347587406,1735930247936,-500.0,0.00019452,3]
[347587407,1735930247946,-501.85260434,0.00019452,3]
[347587408,1735930247955,-500.0,0.00019452,3]
[347587409,1735930247965,-377.78090036,0.00019452,3]
[347587410,1735930247977,-122.21909964,0.00019452,3]
[347587411,1735930247987,-500.0,0.00019452,3]
[347587412,1735930247997,-489.49626936,0.00019452,3]
[347587413,1735930248009,-10.50373064,0.00019452,3]
[347587414,1735930248019,-555.6,0.00019452,3]
[347587415,1735930248028,-504.52088349,0.00019452,3]
[347587416,1735930248037,-500.0,0.00019452,3]
[347587417,1735930248047,-36.19442054,0.00019452,3]
[347587418,1735930248058,-463.80557946,0.00019452,3]
[347587419,1735930248068,-4.1741084,0.00019452,3]
[347587420,1735930248079,-495.8258916,0.00019452,3]
[347587421,1735930248089,-500.0,0.00019452,3]
[347587422,1735930248098,-478.408154,0.00019452,2]
[347587423,1735930248108,-478.408154,0.00019452,2]
[347587424,1735930248117,-651.07,0.00019452,3]
[347587425,1735930248129,-500.0,0.00019452,3]
[347587426,1735930248139,-500.0,0.00019452,3]
[347587427,1735930248148,-502.39026509,0.00019452,3]
[347587428,1735930248157,-500.0,0.00019452,3]
[347587429,1735930248167,-478.408154,0.00019452,2]
[347587430,1735930248176,-478.408154,0.00019452,2]
[347587431,1735930248186,-502.81498191,0.00019452,3]
[347587432,1735930248196,-500.0,0.00019452,3]
[347587433,1735930248205,-595.72055565,0.00019452,3]
[347587434,1735930248218,-427.63664462,0.00019452,3]
[347587435,1735930248299,-74.65279973,0.00019452,3]
[347587436,1735930248309,-500.0,0.00019452,3]
[347587437,1735930248319,-500.0,0.00019452,3]
[347587438,1735930248328,-500.0,0.00019452,3]
[347587439,1735930248338,-151.0,0.00019452,2]
[347587440,1735930248349,-500.0,0.00019452,3]
[347587441,1735930248359,-151.0,0.00019452,2]
[347587442,1735930248369,-151.0,0.00019452,2]
[347587443,1735930248499,-151.0,0.00019452,2]
[347587444,1735930248509,-501.41270449,0.00019452,3]
[347587445,1735930248519,-294.805238,0.00019452,2]
[347587446,1735930248529,-500.0,0.00019452,3]
[347587447,1735930248539,-911.19,0.00019452,3]
[347587448,1735930248548,-500.0,0.00019452,3]
[347587449,1735930248558,-170.16651311,0.00019452,3]
[347587450,1735930248575,-332.39348095,0.00019452,3]
[347587451,1735930248585,-641.07,0.00019452,3]
[347587452,1735930248596,-501.1078311,0.00019452,3]
[347587453,1735930248605,-500.0,0.00019452,3]
[347587454,1735930248615,-475.40935665,0.00019452,3]
[347587455,1735930248629,-24.59064335,0.00019452,3]
[347587456,1735930248639,-500.0,0.00019452,3]
[347587457,1735930248648,-504.29089786,0.00019452,3]